[Event "23rd ETCC Women 2021"]
[Site "Catez"]
[Date "2021.11.15"]
[Round "4.19"]
[White "Klek, Hanna Marie"]
[Black "Balajayeva, Khanim"]
[Result "1/2-1/2"]
[ECO "E05"]
[WhiteElo "2343"]
[BlackElo "2369"]
[Annotator "NA"]
[PlyCount "87"]
[EventDate "2021.11.08"]
[EventType "team-tourn"]
[EventCountry "SLO"]
[SourceTitle "playchess.com"]
[Source "ChessBase"]
[SourceQuality "1"]
[WhiteTeam "Germany"]
[BlackTeam "Azerbaijan"]
[WhiteTeamCountry "GER"]
[BlackTeamCountry "AZE"]
[TimeControl "40/5400+30:1800+30"]

1. c4 {[%emt 0:00:03]} e6 {[%emt 0:01:23]} 2. g3 {[%emt 0:00:09]} Nf6 {[%emt 0:
01:36]} 3. Bg2 {[%emt 0:00:14]} d5 {[%emt 0:02:04]} 4. Nf3 {[%emt 0:00:07]} Be7
{[%emt 0:00:53]} 5. O-O {[%emt 0:00:10]} O-O {[%emt 0:00:02]} 6. d4 {[%emt 0:
00:08]} dxc4 {[%emt 0:02:21]} 7. Ne5 {[%emt 0:01:35]} Nc6 {[%emt 0:04:05]} 8.
Bxc6 {[%emt 0:00:21]} bxc6 {[%emt 0:00:05]} 9. Nxc6 {[%emt 0:00:07]} Qd6 {
[%emt 0:02:46]} 10. Qa4 {[%emt 0:06:05]} Bb7 {[%emt 0:03:39]} 11. Nxe7+ {
[%emt 0:00:27]} Qxe7 {[%emt 0:00:03]} 12. Qxc4 {[%emt 0:04:13]} Rfd8 {[%emt 0:
15:14]} 13. Nc3 {[%emt 0:12:11]} Nd5 {[%emt 0:16:25]} 14. Nxd5 {[%emt 0:06:42]}
Rxd5 {[%emt 0:04:40]} 15. e4 {[%emt 0:06:14]} Rd6 {[%emt 0:05:14]} 16. Re1 {
[%emt 0:02:24]} Qd8 {[%emt 0:05:30]} 17. Bf4 {[%emt 0:05:31]} Rxd4 {[%emt 0:00:
45]} 18. Qxc7 {[%emt 0:00:43]} Qxc7 {[%emt 0:01:36]} 19. Bxc7 {[%emt 0:00:06]}
Rc8 {[%emt 0:04:32]} 20. Rac1 {[%emt 0:04:37]} Rxe4 {[%emt 0:03:18]} 21. Rxe4 {
[%emt 0:02:07]} Bxe4 {[%emt 0:00:04]} 22. f4 {[%emt 0:02:34]} f6 {[%emt 0:03:
00]} 23. Kf2 {[%emt 0:05:39]} Kf7 {[%emt 0:00:08]} 24. Ke3 {[%emt 0:01:08]} Bd5
{[%emt 0:00:06]} 25. b3 {[%emt 0:02:12]} Ke8 {[%emt 0:00:15]} 26. Rc3 {[%emt 0:
00:26]} Kd7 {[%emt 0:00:51]} 27. Ba5 {[%emt 0:00:07]} Rxc3+ {[%emt 0:02:06]}
28. Bxc3 {[%emt 0:00:02]} h5 {[%emt 0:01:47]} 29. Kd4 {[%emt 0:02:24]} Kc6 {
[%emt 0:01:00]} 30. Bb4 {[%emt 0:00:25]} e5+ {[%emt 0:07:34]} 31. fxe5 {
[%emt 0:00:16]} fxe5+ {[%emt 0:00:01]} 32. Kxe5 {[%emt 0:00:10]} g6 {[%emt 0:
00:07]} 33. Bd2 {[%emt 0:03:03]} a6 {[%emt 0:00:46]} 34. Be1 {[%emt 0:04:40]}
Bf3 {[%emt 0:01:00]} 35. Bd2 {[%emt 0:04:25]} Bd1 {[%emt 0:00:13]} 36. Kd4 {
[%emt 0:01:08]} Bc2 {[%emt 0:00:38]} 37. Kc4 {[%emt 0:00:18]} Bb1 {[%emt 0:00:
39]} 38. a4 {[%emt 0:00:33]} Bc2 {[%emt 0:00:05]} 39. Be3 {[%emt 0:00:30]} Kb7
{[%emt 0:00:20]} 40. a5 {[%emt 0:01:08]} Kc6 {[%emt 0:00:30]} 41. b4 {[%emt 0:
30:15]} Ba4 {[%emt 0:30:59]} 42. Bg5 {[%emt 0:00:36]} Bb5+ {[%emt 0:00:28]} 43.
Kd4 {[%emt 0:00:07]} Ba4 {[%emt 0:00:09]} 44. Kc4 {[%emt 0:01:06]} 1/2-1/2

[Event "23rd ETCC Women 2021"]
[Site "Catez"]
[Date "2021.11.15"]
[Round "4.20"]
[White "Beydullayeva, Govhar"]
[Black "Lubbe, Melanie"]
[Result "1-0"]
[ECO "B38"]
[WhiteElo "2278"]
[BlackElo "2311"]
[Annotator "NA"]
[PlyCount "109"]
[EventDate "2021.11.08"]
[EventType "team-tourn"]
[EventCountry "SLO"]
[SourceTitle "playchess.com"]
[Source "ChessBase"]
[SourceQuality "1"]
[WhiteTeam "Azerbaijan"]
[BlackTeam "Germany"]
[WhiteTeamCountry "AZE"]
[BlackTeamCountry "GER"]
[TimeControl "40/5400+30:1800+30"]

1. c4 {[%emt 0:00:08]} Nf6 {[%emt 0:00:07]} 2. Nc3 {[%emt 0:00:10]} c5 {
[%emt 0:05:30]} 3. Nf3 {[%emt 0:01:18]} g6 {[%emt 0:05:57]} 4. d4 {[%emt 0:01:
53]} cxd4 {[%emt 0:00:06]} 5. Nxd4 {[%emt 0:00:02]} Bg7 {[%emt 0:01:35]} 6. e4
{[%emt 0:00:13]} d6 {[%emt 0:04:58]} 7. Be2 {[%emt 0:00:07]} Nc6 {[%emt 0:00:
31]} 8. Be3 {[%emt 0:00:10]} O-O {[%emt 0:01:24]} 9. O-O {[%emt 0:00:22]} Bd7 {
[%emt 0:06:48]} 10. Qd2 {[%emt 0:03:50]} Qa5 {[%emt 0:07:29]} 11. f3 {[%emt 0:
06:52]} Rfc8 {[%emt 0:00:23]} 12. Rfd1 {[%emt 0:11:41]} a6 {[%emt 0:12:52]} 13.
Nb3 {[%emt 0:02:53]} Qc7 {[%emt 0:09:55]} 14. Nd5 {[%emt 0:04:41]} Nxd5 {
[%emt 0:00:14]} 15. cxd5 {[%emt 0:00:04]} Ne5 {[%emt 0:01:05]} 16. Rac1 {
[%emt 0:01:20]} Qd8 {[%emt 0:01:52]} 17. f4 {[%emt 0:29:00]} Ng4 {[%emt 0:00:
51]} 18. Bd4 {[%emt 0:00:05]} Bxd4+ {[%emt 0:07:46]} 19. Qxd4 {[%emt 0:00:13]}
Rxc1 {[%emt 0:01:14]} 20. Rxc1 {[%emt 0:01:20]} Rc8 {[%emt 0:00:33]} 21. Rxc8 {
[%emt 0:05:23]} Qxc8 {[%emt 0:00:16]} 22. Bxg4 {[%emt 0:05:57]} Bxg4 {[%emt 0:
00:05]} 23. Qc3 {[%emt 0:00:07]} Qxc3 24. bxc3 {[%emt 0:00:01]} Be2 {[%emt 0:
12:50]} 25. Nd2 {[%emt 0:00:11]} f6 {[%emt 0:07:03]} 26. Kf2 {[%emt 0:00:25]}
Bb5 {[%emt 0:00:18]} 27. Ke3 {[%emt 0:03:29]} Kf7 {[%emt 0:00:23]} 28. Kd4 {
[%emt 0:04:15]} e5+ {[%emt 0:02:14]} 29. dxe6+ {[%emt 0:00:18]} Kxe6 {[%emt 0:
00:06]} 30. g3 {[%emt 0:08:26]} Be2 {[%emt 0:05:18]} 31. c4 {[%emt 0:03:41]} b6
{[%emt 0:00:43]} 32. Nb1 {[%emt 0:00:19]} b5 {[%emt 0:00:51]} 33. c5 {[%emt 0:
02:41]} dxc5+ {[%emt 0:01:41]} 34. Kxc5 {[%emt 0:00:04]} Bd3 {[%emt 0:01:18]}
35. Nd2 {[%emt 0:03:18]} a5 {[%emt 0:02:23]} 36. Nb3 {[%emt 0:00:33]} Bc4 {
[%emt 0:01:09]} 37. Nd4+ {[%emt 0:01:44]} Kd7 {[%emt 0:00:01]} 38. a3 {[%emt 0:
00:13]} Bd3 {[%emt 0:00:24]} 39. Nxb5 {[%emt 0:01:07]} Bxe4 {[%emt 0:00:18]}
40. Nc3 {[%emt 0:00:33]} Bc6 {[%emt 0:00:39]} 41. Kb6 {[%emt 0:30:02]} a4 {
[%emt 0:09:20]} 42. Ka5 {[%emt 0:00:00]} g5 {[%emt 0:06:12]} 43. fxg5 {[%emt 0:
00:00]} fxg5 {[%emt 0:00:02]} 44. Nxa4 {[%emt 0:00:00]} Kd6 {[%emt 0:03:04]}
45. Kb4 {[%emt 0:00:00]} Ke5 {[%emt 0:05:17]} 46. Nc3 {[%emt 0:00:00]} Kd4 {
[%emt 0:02:57]} 47. Nb5+ {[%emt 0:00:00]} Ke3 {[%emt 0:00:54]} 48. Kc5 {
[%emt 0:00:00]} Be4 {[%emt 0:01:50]} 49. a4 {[%emt 0:00:00]} Kf2 {[%emt 0:01:
53]} 50. a5 {[%emt 0:00:00]} Kg2 {[%emt 0:01:08]} 51. a6 {[%emt 0:00:00]} Kxh2
{[%emt 0:00:19]} 52. Nc7 {[%emt 0:00:00]} Kxg3 {[%emt 0:01:29]} 53. Nd5 {
[%emt 0:00:00]} h5 {[%emt 0:00:56]} 54. a7 {[%emt 0:00:00]} Bxd5 55. Kxd5 1-0

[Event "23rd ETCC Women 2021"]
[Site "Catez"]
[Date "2021.11.15"]
[Round "4.21"]
[White "Tsolakidou, Stavroula"]
[Black "Peptan, Corina-Isabela"]
[Result "1-0"]
[ECO "D20"]
[WhiteElo "2377"]
[BlackElo "2385"]
[Annotator "NA"]
[PlyCount "83"]
[EventDate "2021.11.08"]
[EventType "team-tourn"]
[EventCountry "SLO"]
[SourceTitle "playchess.com"]
[Source "ChessBase"]
[SourceQuality "1"]
[WhiteTeam "Greece"]
[BlackTeam "Romania"]
[WhiteTeamCountry "GRE"]
[BlackTeamCountry "ROU"]
[TimeControl "40/5400+30:1800+30"]

1. d4 {[%emt 0:00:04]} d5 {[%emt 0:00:11]} 2. c4 {[%emt 0:00:13]} dxc4 {
[%emt 0:00:16]} 3. e4 {[%emt 0:00:31]} Nf6 {[%emt 0:00:38]} 4. e5 {[%emt 0:00:
25]} Nd5 {[%emt 0:00:04]} 5. Bxc4 {[%emt 0:00:09]} Nc6 {[%emt 0:00:15]} 6. Ne2
{[%emt 0:00:55]} Nb6 {[%emt 0:08:37]} 7. Bd3 {[%emt 0:00:27]} Be6 {[%emt 0:02:
31]} 8. Nbc3 {[%emt 0:03:55]} Qd7 {[%emt 0:00:37]} 9. Be4 {[%emt 0:10:26]}
O-O-O {[%emt 0:04:21]} 10. Be3 {[%emt 0:03:19]} Bf5 {[%emt 0:07:50]} 11. Qb1 {
[%emt 0:23:46]} Bxe4 {[%emt 0:03:17]} 12. Qxe4 {[%emt 0:00:41]} e6 {[%emt 0:00:
09]} 13. O-O {[%emt 0:03:55]} Nb4 {[%emt 0:04:34]} 14. Rfc1 {[%emt 0:06:10]}
N4d5 {[%emt 0:04:55]} 15. a4 {[%emt 0:08:33]} a6 {[%emt 0:12:54]} 16. a5 {
[%emt 0:13:00]} Nc4 {[%emt 0:03:24]} 17. Nxd5 {[%emt 0:00:59]} exd5 {[%emt 0:
00:10]} 18. Qc2 {[%emt 0:00:05]} Nxe3 {[%emt 0:11:45]} 19. fxe3 {[%emt 0:00:04]
} h5 {[%emt 0:05:37]} 20. Nf4 {[%emt 0:08:22]} Rh6 {[%emt 0:00:52]} 21. Nxd5 {
[%emt 0:00:56]} Rc6 {[%emt 0:00:07]} 22. Nc3 {[%emt 0:00:03]} h4 {[%emt 0:01:
27]} 23. Rf1 {[%emt 0:03:18]} f6 {[%emt 0:06:23]} 24. Qf5 {[%emt 0:03:43]} Re6
{[%emt 0:00:04]} 25. Rad1 {[%emt 0:02:39]} Be7 {[%emt 0:10:15]} 26. e4 {
[%emt 0:03:19]} g6 {[%emt 0:03:15]} 27. Qh3 {[%emt 0:00:32]} fxe5 {[%emt 0:00:
42]} 28. dxe5 {[%emt 0:00:15]} Qc6 {[%emt 0:00:03]} 29. Nd5 {[%emt 0:00:36]}
Re8 {[%emt 0:09:08]} 30. Rc1 {[%emt 0:00:55]} Bc5+ {[%emt 0:00:07]} 31. Kh1 {
[%emt 0:00:07]} Kb8 {[%emt 0:00:56]} 32. b4 {[%emt 0:00:50]} Rxe5 {[%emt 0:00:
01]} 33. Rxc5 {[%emt 0:00:18]} Qa4 {[%emt 0:00:34]} 34. Nf6 {[%emt 0:00:59]}
Rxc5 {[%emt 0:00:19]} 35. bxc5 {[%emt 0:00:28]} Rd8 {[%emt 0:00:18]} 36. Qc3 {
[%emt 0:00:28]} Rd1 {[%emt 0:00:39]} 37. Kg1 {[%emt 0:00:29]} Rd8 {[%emt 0:01:
07]} 38. e5 {[%emt 0:00:54]} Qc6 {[%emt 0:00:07]} 39. Qe3 {[%emt 0:00:57]} h3 {
[%emt 0:00:16]} 40. gxh3 {[%emt 0:00:14]} Qb5 {[%emt 0:00:15]} 41. e6 {[%emt 0:
32:12]} Rd3 {[%emt 0:30:06]} 42. Qe5 {[%emt 0:00:00]} 1-0

[Event "23rd ETCC Women 2021"]
[Site "Catez"]
[Date "2021.11.15"]
[Round "4.22"]
[White "Cosma, Elena-Luminita"]
[Black "Avramidou, Anastasia"]
[Result "1/2-1/2"]
[ECO "D35"]
[WhiteElo "2281"]
[BlackElo "2217"]
[Annotator "NA"]
[PlyCount "82"]
[EventDate "2021.11.08"]
[EventType "team-tourn"]
[EventCountry "SLO"]
[SourceTitle "playchess.com"]
[Source "ChessBase"]
[SourceQuality "1"]
[WhiteTeam "Romania"]
[BlackTeam "Greece"]
[WhiteTeamCountry "ROU"]
[BlackTeamCountry "GRE"]
[TimeControl "40/5400+30:1800+30"]

1. d4 {[%emt 0:00:03]} d5 {[%emt 0:00:16]} 2. Nf3 {[%emt 0:00:12]} Nf6 {
[%emt 0:01:37]} 3. c4 {[%emt 0:00:22]} e6 {[%emt 0:00:10]} 4. g3 {[%emt 0:00:
13]} h6 {[%emt 0:00:16]} 5. Bg2 {[%emt 0:00:46]} Bd6 {[%emt 0:00:13]} 6. Nc3 {
[%emt 0:01:52]} O-O {[%emt 0:00:56]} 7. O-O {[%emt 0:00:23]} Nc6 {[%emt 0:00:
40]} 8. cxd5 {[%emt 0:12:49]} exd5 {[%emt 0:00:14]} 9. Nb5 {[%emt 0:00:11]} Be7
{[%emt 0:21:34]} 10. Ne5 {[%emt 0:07:34]} Nxe5 {[%emt 0:21:35]} 11. dxe5 {
[%emt 0:00:05]} Ne4 {[%emt 0:00:12]} 12. Be3 {[%emt 0:16:47]} c6 {[%emt 0:13:
42]} 13. Bxe4 {[%emt 0:08:34]} dxe4 {[%emt 0:00:20]} 14. Nd6 {[%emt 0:01:41]}
Bxd6 {[%emt 0:12:05]} 15. exd6 {[%emt 0:00:15]} Be6 {[%emt 0:00:04]} 16. Qd4 {
[%emt 0:25:49]} Bd5 {[%emt 0:02:18]} 17. Bd2 {[%emt 0:00:08]} Qb6 {[%emt 0:04:
35]} 18. Qxb6 {[%emt 0:04:45]} axb6 {[%emt 0:00:04]} 19. a4 {[%emt 0:02:55]}
Rfd8 {[%emt 0:02:03]} 20. a5 {[%emt 0:00:44]} bxa5 {[%emt 0:00:31]} 21. Bxa5 {
[%emt 0:04:59]} Rxd6 {[%emt 0:01:46]} 22. Rfd1 {[%emt 0:00:20]} Rd7 {[%emt 0:
01:23]} 23. Bc3 {[%emt 0:00:51]} Rxa1 {[%emt 0:02:53]} 24. Rxa1 {[%emt 0:00:03]
} f6 {[%emt 0:00:07]} 25. h4 {[%emt 0:00:35]} c5 {[%emt 0:04:32]} 26. Kf1 {
[%emt 0:03:06]} b5 {[%emt 0:02:20]} 27. Ke1 {[%emt 0:00:29]} Bb3 {[%emt 0:03:
45]} 28. Bd2 {[%emt 0:00:11]} Ba4 {[%emt 0:01:21]} 29. Ra3 {[%emt 0:02:23]} c4
{[%emt 0:00:24]} 30. Re3 {[%emt 0:01:06]} Bc2 {[%emt 0:00:34]} 31. Rc3 {
[%emt 0:00:32]} Bb3 {[%emt 0:00:18]} 32. f3 {[%emt 0:01:41]} exf3 {[%emt 0:01:
31]} 33. exf3 {[%emt 0:00:05]} Ra7 {[%emt 0:00:14]} 34. Re3 {[%emt 0:00:31]}
Ra1+ {[%emt 0:00:30]} 35. Kf2 {[%emt 0:00:09]} Rb1 {[%emt 0:00:37]} 36. Bc3 {
[%emt 0:00:28]} b4 {[%emt 0:01:31]} 37. Re1 {[%emt 0:02:40]} Bd1 {[%emt 0:00:
08]} 38. Bd4 {[%emt 0:00:11]} Kf7 {[%emt 0:00:57]} 39. Ke3 {[%emt 0:00:18]} Bc2
{[%emt 0:00:28]} 40. Rxb1 {[%emt 0:00:32]} Bxb1 {[%emt 0:00:06]} 41. Bc5 {
[%emt 0:31:06]} b3 {[%emt 0:30:43]} 1/2-1/2

[Event "23rd ETCC Women 2021"]
[Site "Catez"]
[Date "2021.11.15"]
[Round "4.23"]
[White "Pavlidou, Ekaterini"]
[Black "Sandu, Mihaela"]
[Result "1-0"]
[ECO "E70"]
[WhiteElo "2172"]
[BlackElo "2244"]
[Annotator "NA"]
[PlyCount "97"]
[EventDate "2021.11.08"]
[EventType "team-tourn"]
[EventCountry "SLO"]
[SourceTitle "playchess.com"]
[Source "ChessBase"]
[SourceQuality "1"]
[WhiteTeam "Greece"]
[BlackTeam "Romania"]
[WhiteTeamCountry "GRE"]
[BlackTeamCountry "ROU"]
[TimeControl "40/5400+30:1800+30"]

1. d4 {[%emt 0:00:21]} Nf6 {[%emt 0:00:04]} 2. c4 {[%emt 0:00:14]} g6 {[%emt 0:
00:08]} 3. Nc3 {[%emt 0:00:22]} Bg7 {[%emt 0:00:04]} 4. e4 {[%emt 0:00:15]} O-O
{[%emt 0:00:47]} 5. Bd3 {[%emt 0:01:27]} d6 {[%emt 0:03:04]} 6. Nge2 {[%emt 0:
00:13]} e5 {[%emt 0:00:08]} 7. d5 {[%emt 0:00:26]} c6 {[%emt 0:00:09]} 8. h3 {
[%emt 0:03:25]} cxd5 {[%emt 0:00:13]} 9. cxd5 {[%emt 0:00:11]} a5 {[%emt 0:01:
00]} 10. Be3 {[%emt 0:03:02]} Na6 {[%emt 0:00:15]} 11. O-O {[%emt 0:04:50]} Nc5
{[%emt 0:01:10]} 12. Bc2 {[%emt 0:00:26]} Bd7 {[%emt 0:01:10]} 13. a4 {[%emt 0:
01:54]} Ne8 {[%emt 0:09:26]} 14. Ra3 {[%emt 0:04:55]} Rc8 {[%emt 0:07:08]} 15.
Qd2 {[%emt 0:06:26]} Na6 {[%emt 0:02:57]} 16. Bd3 {[%emt 0:03:26]} Nc5 {
[%emt 0:01:44]} 17. Bc2 {[%emt 0:03:21]} Na6 {[%emt 0:00:48]} 18. f3 {[%emt 0:
19:24]} Nb4 {[%emt 0:11:57]} 19. Bb1 {[%emt 0:03:11]} Rc4 {[%emt 0:04:37]} 20.
Nb5 {[%emt 0:05:34]} Na6 {[%emt 0:04:51]} 21. Bd3 {[%emt 0:06:16]} Rc8 {
[%emt 0:00:02]} 22. Na7 {[%emt 0:04:07]} Ra8 {[%emt 0:00:07]} 23. Bxa6 {
[%emt 0:00:48]} bxa6 {[%emt 0:00:06]} 24. Rc1 {[%emt 0:03:20]} f5 {[%emt 0:01:
43]} 25. Nc6 {[%emt 0:00:45]} Qf6 {[%emt 0:05:04]} 26. Bg5 {[%emt 0:00:56]} Qf7
{[%emt 0:00:02]} 27. Nd8 {[%emt 0:01:52]} Rxd8 {[%emt 0:00:33]} 28. Bxd8 {
[%emt 0:00:06]} fxe4 {[%emt 0:02:41]} 29. Ng3 {[%emt 0:06:26]} e3 {[%emt 0:23:
55]} 30. Qxe3 {[%emt 0:00:51]} Qxd5 {[%emt 0:00:04]} 31. Ne4 {[%emt 0:01:28]}
Qf7 {[%emt 0:03:14]} 32. Rd1 {[%emt 0:02:41]} Kh8 {[%emt 0:09:01]} 33. Ng5 {
[%emt 0:01:32]} Qc4 {[%emt 0:00:58]} 34. Be7 {[%emt 0:03:14]} Rf5 {[%emt 0:02:
38]} 35. Bxd6 {[%emt 0:04:58]} Bxa4 {[%emt 0:00:26]} 36. Rc1 {[%emt 0:01:06]}
Qb5 {[%emt 0:03:06]} 37. Ne4 {[%emt 0:01:08]} Qd7 {[%emt 0:01:00]} 38. Qc5 {
[%emt 0:01:13]} Nxd6 {[%emt 0:01:31]} 39. Qxd6 {[%emt 0:00:46]} Rf8 {[%emt 0:
01:19]} 40. Qxd7 {[%emt 0:00:57]} Bxd7 {[%emt 0:00:04]} 41. Rxa5 {[%emt 0:31:
29]} Bh6 {[%emt 0:02:18]} 42. Rc3 {[%emt 0:00:00]} Bb5 {[%emt 0:00:32]} 43. Kf2
{[%emt 0:00:00]} Rd8 {[%emt 0:00:40]} 44. Ra1 {[%emt 0:00:00]} Bf8 {[%emt 0:04:
59]} 45. Rac1 {[%emt 0:00:00]} Kg7 {[%emt 0:01:12]} 46. Rc7+ {[%emt 0:00:00]}
Kh6 {[%emt 0:00:24]} 47. h4 {[%emt 0:00:00]} g5 {[%emt 0:01:01]} 48. hxg5+ {
[%emt 0:00:00]} Kg6 {[%emt 0:00:03]} 49. Rc8 {[%emt 0:00:00]} 1-0

[Event "23rd ETCC Women 2021"]
[Site "Catez"]
[Date "2021.11.15"]
[Round "4.24"]
[White "Ciolacu, Alessia-Mihaela"]
[Black "Christodoulaki, Antonia"]
[Result "1/2-1/2"]
[ECO "E11"]
[WhiteElo "2263"]
[BlackElo "2075"]
[Annotator "NA"]
[PlyCount "110"]
[EventDate "2021.11.08"]
[EventType "team-tourn"]
[EventCountry "SLO"]
[SourceTitle "playchess.com"]
[Source "ChessBase"]
[SourceQuality "1"]
[WhiteTeam "ROU"]
[BlackTeam "GRE"]
[WhiteTeamCountry "ROU"]
[TimeControl "40/5400+30:1800+30"]

1. d4 {[%emt 0:00:03]} Nf6 {[%emt 0:00:09]} 2. c4 {[%emt 0:00:10]} e6 {[%emt 0:
00:06]} 3. Nf3 {[%emt 0:00:11]} Bb4+ {[%emt 0:00:31]} 4. Nbd2 {[%emt 0:01:22]}
O-O {[%emt 0:02:46]} 5. a3 {[%emt 0:00:26]} Bxd2+ {[%emt 0:00:37]} 6. Qxd2 {
[%emt 0:00:21]} b6 {[%emt 0:03:12]} 7. g3 {[%emt 0:00:30]} Bb7 {[%emt 0:00:47]}
8. Bg2 {[%emt 0:00:16]} d6 {[%emt 0:03:38]} 9. O-O {[%emt 0:01:31]} Nbd7 {
[%emt 0:06:29]} 10. b4 {[%emt 0:10:35]} c5 {[%emt 0:14:48]} 11. Bb2 {[%emt 0:
01:06]} Qe7 {[%emt 0:06:30]} 12. dxc5 {[%emt 0:14:02]} dxc5 {[%emt 0:02:09]}
13. b5 {[%emt 0:00:29]} e5 {[%emt 0:06:43]} 14. Nh4 {[%emt 0:08:43]} Bxg2 {
[%emt 0:01:59]} 15. Nxg2 {[%emt 0:00:11]} Qe6 {[%emt 0:18:39]} 16. Qc2 {
[%emt 0:05:41]} Qh3 {[%emt 0:04:27]} 17. f3 {[%emt 0:10:09]} Rfe8 {[%emt 0:01:
41]} 18. e4 {[%emt 0:03:18]} Nh5 {[%emt 0:04:42]} 19. Bc3 {[%emt 0:09:32]} Nf8
{[%emt 0:01:33]} 20. a4 {[%emt 0:00:42]} Re6 {[%emt 0:01:23]} 21. a5 {[%emt 0:
00:42]} Rae8 {[%emt 0:00:05]} 22. axb6 axb6 {[%emt 0:00:02]} 23. Ra6 {[%emt 0:
02:42]} Rh6 {[%emt 0:01:25]} 24. Bd2 {[%emt 0:01:55]} Rg6 {[%emt 0:02:01]} 25.
Be1 {[%emt 0:04:20]} Ne6 {[%emt 0:00:19]} 26. Ne3 {[%emt 0:03:30]} Nd4 {
[%emt 0:04:38]} 27. Qg2 {[%emt 0:01:10]} Qd7 {[%emt 0:00:32]} 28. Nd5 {[%emt 0:
00:52]} Nf4 {[%emt 0:00:18]} 29. Nxf4 {[%emt 0:04:11]} exf4 {[%emt 0:00:07]}
30. Qa2 {[%emt 0:02:38]} f5 {[%emt 0:00:59]} 31. Ra8 {[%emt 0:01:02]} Qe6 {
[%emt 0:02:02]} 32. Qa7 {[%emt 0:08:47]} h5 {[%emt 0:03:48]} 33. Qb7 {[%emt 0:
02:58]} Kh7 {[%emt 0:06:07]} 34. Rxe8 Qxe8 {[%emt 0:00:01]} 35. exf5 {[%emt 0:
01:26]} Nxf5 {[%emt 0:01:29]} 36. Qe4 {[%emt 0:01:07]} Qxe4 {[%emt 0:00:44]}
37. fxe4 {[%emt 0:00:01]} Ne3 {[%emt 0:00:32]} 38. Rxf4 {[%emt 0:00:04]} Nxc4 {
[%emt 0:00:07]} 39. Rf5 {[%emt 0:02:30]} Re6 {[%emt 0:01:21]} 40. Rxh5+ {
[%emt 0:00:30]} Kg6 {[%emt 0:00:01]} 41. Rh4 {[%emt 0:03:55]} Nd6 {[%emt 0:01:
11]} 42. Rg4+ {[%emt 0:01:28]} Kf7 {[%emt 0:00:24]} 43. Bc3 {[%emt 0:02:36]} g6
{[%emt 0:00:27]} 44. e5 {[%emt 0:00:44]} Nxb5 {[%emt 0:00:06]} 45. Bb2 {
[%emt 0:00:05]} Na7 {[%emt 0:01:52]} 46. Rh4 {[%emt 0:02:13]} Kg7 {[%emt 0:04:
41]} 47. Kf2 {[%emt 0:01:39]} Nc6 {[%emt 0:00:27]} 48. Ke3 {[%emt 0:00:34]} g5
{[%emt 0:10:02]} 49. Rg4 {[%emt 0:00:45]} Rg6 {[%emt 0:00:46]} 50. Ke4 {
[%emt 0:00:56]} Kf7 {[%emt 0:00:42]} 51. h4 {[%emt 0:02:51]} gxh4 {[%emt 0:03:
57]} 52. Rxg6 {[%emt 0:00:16]} Kxg6 {[%emt 0:00:01]} 53. gxh4 {[%emt 0:00:06]}
Nxe5 {[%emt 0:03:03]} 54. Bxe5 {[%emt 0:01:59]} Kh5 {[%emt 0:00:23]} 55. Bf6 {
[%emt 0:01:43]} Kg4 {[%emt 0:02:20]} 1/2-1/2

[Event "23rd ETCC Women 2021"]
[Site "Catez"]
[Date "2021.11.15"]
[Round "4.25"]
[White "Sebag, Marie"]
[Black "Shvayger, Yuliya"]
[Result "1/2-1/2"]
[ECO "B30"]
[WhiteElo "2447"]
[BlackElo "2351"]
[Annotator "NA"]
[PlyCount "82"]
[EventDate "2021.11.08"]
[EventType "team-tourn"]
[EventCountry "SLO"]
[SourceTitle "playchess.com"]
[Source "ChessBase"]
[SourceQuality "1"]
[WhiteTeam "France"]
[BlackTeam "Israel"]
[WhiteTeamCountry "FRA"]
[BlackTeamCountry "ISR"]
[TimeControl "40/5400+30:1800+30"]

1. e4 {[%emt 0:00:05]} c5 {[%emt 0:00:26]} 2. Nf3 {[%emt 0:00:08]} Nc6 {
[%emt 0:00:06]} 3. Bb5 {[%emt 0:00:07]} e6 {[%emt 0:00:10]} 4. O-O {[%emt 0:00:
59]} Nge7 {[%emt 0:00:07]} 5. d4 {[%emt 0:00:58]} cxd4 {[%emt 0:00:15]} 6. Nxd4
{[%emt 0:00:11]} Ng6 {[%emt 0:00:14]} 7. Be3 {[%emt 0:05:55]} Be7 {[%emt 0:01:
16]} 8. Be2 {[%emt 0:01:51]} O-O {[%emt 0:00:47]} 9. c4 {[%emt 0:00:57]} b6 {
[%emt 0:00:28]} 10. Nc3 {[%emt 0:05:05]} Bb7 {[%emt 0:00:09]} 11. Nc2 {[%emt 0:
22:56]} Qc7 {[%emt 0:01:50]} 12. Qd2 {[%emt 0:05:08]} Rad8 {[%emt 0:18:22]} 13.
Rad1 {[%emt 0:08:08]} Qb8 {[%emt 0:03:45]} 14. b3 {[%emt 0:04:57]} f5 {[%emt 0:
11:40]} 15. exf5 {[%emt 0:05:33]} Nh4 {[%emt 0:00:07]} 16. f4 {[%emt 0:09:43]}
Nb4 {[%emt 0:04:57]} 17. Ne1 {[%emt 0:05:49]} Nxf5 {[%emt 0:07:37]} 18. Bf2 {
[%emt 0:00:12]} d5 {[%emt 0:02:13]} 19. Bf3 {[%emt 0:06:03]} d4 {[%emt 0:09:11]
} 20. Ne4 {[%emt 0:00:12]} Bxe4 {[%emt 0:00:38]} 21. Bxe4 {[%emt 0:00:14]} Ne3
{[%emt 0:00:04]} 22. Nd3 {[%emt 0:01:38]} Nxf1 {[%emt 0:02:06]} 23. Rxf1 {
[%emt 0:00:11]} Nxd3 {[%emt 0:01:05]} 24. Qxd3 {[%emt 0:00:04]} Qxf4 {[%emt 0:
01:25]} 25. Bxh7+ {[%emt 0:00:12]} Kh8 {[%emt 0:00:04]} 26. Be4 {[%emt 0:01:42]
} Rf6 {[%emt 0:00:57]} 27. Bf3 {[%emt 0:01:28]} Bc5 {[%emt 0:02:15]} 28. Re1 {
[%emt 0:00:42]} Bb4 {[%emt 0:08:20]} 29. Rd1 {[%emt 0:01:48]} Qf5 {[%emt 0:02:
53]} 30. Bh4 {[%emt 0:01:20]} g5 {[%emt 0:02:07]} 31. Be4 {[%emt 0:00:39]} Qg4
{[%emt 0:00:22]} 32. Bg3 {[%emt 0:00:49]} Bd6 {[%emt 0:05:11]} 33. Bf3 {
[%emt 0:00:44]} Qf5 {[%emt 0:00:02]} 34. Be4 {[%emt 0:00:15]} Qc5 {[%emt 0:01:
27]} 35. Bxd6 {[%emt 0:05:20]} Qxd6 {[%emt 0:09:53]} 36. Qh3+ {[%emt 0:00:06]}
Kg8 {[%emt 0:00:06]} 37. Qh7+ {[%emt 0:00:06]} Kf8 {[%emt 0:00:03]} 38. Qh8+ {
[%emt 0:00:19]} Kf7 {[%emt 0:02:16]} 39. Qh7+ {[%emt 0:00:19]} Kf8 {[%emt 0:00:
46]} 40. Qh8+ {[%emt 0:00:12]} Kf7 {[%emt 0:01:20]} 41. Qh7+ {[%emt 0:30:06]}
Kf8 {[%emt 0:30:42]} 1/2-1/2